bitfinex-derivatives/quotes_ETHF0:USTF0_20241020
["timestamp","ask_amount","ask_price","bid_price","bid_amount"]
[1729450073666,0.8255,2701.9,2701.4,0.4199]
[1729450073964,0.37021,2701.6,2701.4,0.79013]
[1729450074467,0.8255,2701.9,2701.4,0.4199]
[1729450074857,0.37022,2701.5,2701.4,0.4199]
[1729450075160,0.37021,2701.6,2701.4,0.4199]
[1729450075366,0.4142,2701.5,2701.4,0.4199]
[1729450075569,0.78442,2701.5,2701.4,0.4199]
[1729450077573,0.37023,2701.4,2701.3,0.8297]
[1729450077784,0.37023,2701.4,2701.3,0.423]
[1729450078066,0.77353,2701.4,2701.3,0.423]
[1729450078270,0.37027,2701.2,2701.0,5.02984332]
[1729450078463,0.3934,2701.1,2701.0,3.57808]
[1729450078973,0.3934,2701.1,2701.0,3.98548]
[1729450079168,0.3934,2701.1,2701.0,4.28652431]
[1729450079676,0.3934,2701.1,2701.0,4.74967009]
[1729450080576,0.3934,2701.1,2701.0,4.44862578]
[1729450080867,0.3934,2701.1,2701.0,4.86545885]
[1729450081072,0.3934,2701.1,2701.0,4.49517885]
[1729450081265,0.76367,2701.1,2701.0,4.37939202]
[1729450081465,0.76367,2701.1,2701.0,3.32358667]
[1729450081666,0.3934,2701.1,2701.0,3.32358667]
[1729450081866,0.3934,2701.1,2701.0,0.11578667]
[1729450082080,0.76367,2701.1,2701.0,0.11578667]
[1729450084380,4.46607,2701.1,2701.0,0.11578667]
[1729450084580,0.76367,2701.1,2701.0,0.11578667]
[1729450084974,4.46607,2701.1,2701.0,0.11578667]
[1729450086980,4.46607,2701.1,2700.7,0.37032]
[1729450086981,0.3703,2700.9,2700.7,0.37032]
[1729450087491,0.37031,2700.8,2700.7,0.37032]
[1729450087876,0.37031,2700.9,2700.5,1.1991]
[1729450088085,0.37031,2700.9,2700.8,0.37031]
[1729450088682,0.7836,2701.0,2700.5,1.1991]
[1729450089082,0.37031,2700.8,2700.6,0.37033]
[1729450089378,0.37033,2700.7,2700.5,1.56945]
[1729450089588,0.7836,2701.0,2700.5,0.804]
[1729450089775,0.77575,2700.6,2700.4,0.37036]
[1729450090179,0.77575,2700.6,2700.1,0.7849]
[1729450090180,0.4054,2700.6,2700.1,0.7849]
[1729450090373,0.37036,2700.5,2700.2,0.37038]
[1729450090573,0.77956,2700.5,2700.3,0.37038]
[1729450090989,0.4092,2700.5,2700.1,0.7849]
[1729450091286,0.37038,2700.3,2700.1,0.7849]
[1729450091579,0.37037,2700.4,2700.1,1.1553]
[1729450091980,0.37039,2700.3,2700.1,0.3858]
[1729450092177,0.405,2700.2,2700.0,0.78112]
[1729450092485,0.405,2700.2,2700.1,0.37041]
[1729450092877,0.405,2700.2,2700.0,0.78111]
[1729450093184,0.405,2700.2,2700.1,0.37041]
[1729450093985,4.1082,2700.2,2699.8,0.8011]
[1729450094187,0.7754,2700.2,2699.9,0.37043]
[1729450094485,1.5494,2700.2,2699.9,0.37043]
[1729450094797,1.5494,2700.2,2699.9,0.37042]
[1729450095175,0.37041,2700.1,2699.9,0.37042]
[1729450095380,1.179,2700.2,2699.9,0.37042]
[1729450095581,0.37042,2700.0,2699.8,0.37044]
[1729450095988,0.37042,2700.0,2699.7,3.2078]
[1729450096191,0.3893,2699.9,2699.8,0.37045]
[1729450097093,0.37041,2700.1,2699.9,0.37042]
[1729450097387,1.54939,2700.2,2700.0,0.37041]
[1729450097895,0.405,2700.2,2700.1,0.37041]
[1729450098391,3.2078,2700.3,2700.2,0.37039]
[1729450098594,0.37034,2700.6,2700.5,0.37035]
[1729450098890,1.1851,2700.7,2700.6,0.37034]
[1729450099201,1.1851,2700.7,2700.2,0.92599]
[1729450099202,3.2078,2701.0,2700.9,0.3703]
[1729450099510,0.4037,2700.9,2700.8,0.37031]
[1729450100291,0.774,2700.9,2700.8,0.37031]
[1729450100684,0.4037,2700.9,2700.8,0.37031]
[1729450101688,0.3703,2700.9,2700.8,0.37031]
[1729450103391,3.57808,2701.0,2700.9,0.3703]
[1729450104895,3.2078,2701.0,2700.5,0.8075]
[1729450105195,0.3703,2700.9,2700.8,0.3703]
[1729450105695,0.92558,2701.4,2700.7,3.2078]
[1729450105696,0.37025,2701.3,2700.7,3.2078]
[1729450106000,0.77,2701.3,2701.2,0.37026]
[1729450106205,1.14024,2701.3,2701.2,0.37026]
[1729450106394,0.37024,2701.3,2701.2,0.37026]
[1729450107585,0.78074,2701.3,2701.2,0.37026]
[1729450109200,0.78074,2701.3,2701.1,0.37026]
[1729450109990,0.78074,2701.3,2701.2,0.37026]
[1729450110192,0.4105,2701.3,2700.8,0.417]
[1729450110392,0.78075,2701.3,2701.1,0.37026]
[1729450111402,0.4105,2701.3,2700.8,0.417]
[1729450111703,0.4105,2701.3,2701.1,0.37027]
[1729450111704,0.78075,2701.3,2701.1,0.37027]
[1729450112196,0.37026,2701.2,2701.1,0.37027]
[1729450113201,0.37026,2701.2,2700.8,0.417]
[1729450113388,0.37026,2701.2,2701.1,0.37027]
[1729450113594,0.37027,2701.1,2701.0,0.37028]
[1729450113792,0.37027,2701.2,2701.0,0.37028]
[1729450113998,0.37027,2701.2,2700.8,0.417]
[1729450114300,0.4105,2701.3,2700.8,0.417]
[1729450114607,0.4105,2701.3,2700.9,0.3703]
[1729450114608,0.37029,2701.0,2700.9,0.3703]
[1729450114807,0.37029,2701.0,2700.8,0.417]
[1729450115009,0.37028,2701.1,2700.9,0.37029]
[1729450115597,0.4105,2701.3,2701.2,0.37026]
[1729450117606,3.2078,2701.7,2701.2,3.7016]
[1729450117811,3.2078,2701.7,2701.3,1.2033]
[1729450118111,0.37021,2701.6,2701.4,0.37022]
[1729450118605,3.2078,2701.7,2701.4,0.37022]
[1729450118606,0.4089,2701.5,2701.4,0.37022]
[1729450120407,0.37023,2701.4,2701.2,0.37025]
[1729450120604,0.77393,2701.4,2701.2,0.37025]
[1729450121112,0.37024,2701.3,2701.1,0.37026]
[1729450121603,0.8138,2701.4,2701.0,0.8231]
[1729450121806,1.18404,2701.4,2701.2,0.37025]
[1729450123704,0.8138,2701.4,2701.0,0.8231]
[1729450124004,1.18404,2701.4,2701.2,0.37026]
[1729450125508,1.18404,2701.4,2701.0,0.8231]
[1729450125509,0.37024,2701.3,2701.0,0.8231]
[1729450125708,0.8138,2701.4,2701.1,0.1157881]
[1729450125910,1.18404,2701.4,2701.2,0.4860381]
[1729450126110,1.18404,2701.4,2701.2,0.37025]
[1729450126307,0.8138,2701.4,2701.0,0.8231]
[1729450126513,0.37025,2701.3,2701.1,0.48604807]
[1729450126712,0.37025,2701.3,2701.2,0.11578807]
[1729450126917,0.37025,2701.3,2701.1,0.37026]
[1729450127409,1.18404,2701.4,2701.2,0.37025]
[1729450127604,0.8138,2701.4,2701.0,0.8231]
[1729450127805,0.37025,2701.3,2701.1,0.48604853]
[1729450128014,0.37025,2701.3,2701.1,0.37026]
[1729450130313,1.18404,2701.4,2701.2,0.37025]
[1729450131212,0.37025,2701.3,2701.1,0.37026]
[1729450131414,1.18404,2701.4,2701.2,0.37025]
[1729450131909,1.18404,2701.4,2701.3,0.37024]
[1729450132307,0.37025,2701.3,2701.1,0.37026]
[1729450132513,1.18404,2701.4,2701.2,0.37025]
[1729450133514,1.18404,2701.4,2701.3,0.37024]
[1729450134419,1.18404,2701.4,2701.2,0.37025]
[1729450135004,0.8138,2701.4,2701.2,0.37025]
[1729450135212,1.18404,2701.4,2701.2,0.37025]
[1729450135521,1.18404,2701.4,2701.3,0.37024]
[1729450136013,1.18404,2701.4,2701.2,0.37025]
[1729450136418,0.8138,2701.4,2701.0,0.8231]
[1729450136714,1.18403,2701.4,2701.3,0.37024]
[1729450137213,0.8138,2701.4,2701.3,0.37024]
[1729450137417,0.4089,2701.5,2701.3,0.37024]
[1729450137623,0.77912,2701.5,2701.4,0.37023]
[1729450140522,0.4089,2701.5,2701.4,0.37023]
[1729450140720,0.37021,2701.6,2701.5,0.37022]
[1729450140912,0.75531,2701.6,2701.5,0.37022]
[1729450141726,0.7553,2701.6,2701.5,0.37022]
[1729450144313,0.7553,2701.6,2701.5,0.48600422]
[1729450145212,2.32258004,2701.8,2701.7,0.37019]
[1729450145420,0.75118,2701.8,2701.7,0.37019]
[1729450145614,0.75118,2701.8,2701.7,0.48596543]
[1729450146614,0.75118,2701.8,2701.7,0.37019]
[1729450147012,0.75118,2701.8,2701.7,0.77959]
[1729450147620,0.75117,2701.9,2701.8,0.37017]
[1729450148224,0.381,2701.9,2701.8,0.37017]
[1729450148613,5.54248004,2702.0,2701.7,1.37703975]
[1729450148614,3.2078,2702.0,2701.7,1.37703975]
[1729450148819,3.2078,2702.0,2701.9,0.37016]
[1729450149114,3.2078,2702.0,2701.9,1.33779975]
[1729450149310,3.2078,2702.0,2701.9,1.29682312]
[1729450149519,3.2078,2702.0,2701.9,3.94211784]
[1729450149828,3.2078,2702.0,2701.9,4.40514336]
[1729450150017,0.3972,2702.1,2702.0,0.37015]
[1729450150324,0.3972,2702.1,2702.0,1.33745577]
[1729450150934,0.3972,2702.1,2702.0,1.4532105]
[1729450151932,1.1717,2702.4,2702.1,0.37013]
[1729450152222,0.4011,2702.3,2702.0,0.96730577]
[1729450152425,0.77121,2702.3,2702.1,0.37012]
[1729450153128,0.77121,2702.3,2702.0,0.96730577]
[1729450153321,0.77121,2702.3,2702.2,0.37012]
[1729450153720,0.4011,2702.3,2702.2,0.37012]
[1729450154324,0.37008,2702.5,2702.1,0.96730577]
[1729450154529,0.4036,2702.6,2702.2,0.7912]
[1729450154717,0.77368,2702.6,2702.4,0.37008]
[1729450154921,0.37008,2702.5,2702.4,0.37008]
[1729450155319,0.37008,2702.5,2702.2,0.7912]
[1729450155520,0.37008,2702.5,2702.4,0.37009]
[1729450155521,2.31166004,2702.5,2702.4,0.37009]
[1729450156322,0.37008,2702.5,2702.4,0.37009]
[1729450156832,2.34518004,2702.6,2702.2,0.7912]
[1729450157035,2.34518004,2702.6,2702.3,0.37009]
[1729450157036,0.37009,2702.4,2702.3,0.37009]
[1729450163828,0.37011,2702.3,2702.2,0.37012]
[1729450164021,1.19501,2702.3,2702.2,0.37012]
[1729450166836,0.8249,2702.3,2702.0,0.3808]
[1729450167037,0.75372,2702.2,2702.1,0.37013]
[1729450169336,0.3836,2702.2,2702.1,0.37013]
[1729450171039,0.75372,2702.2,2702.1,0.37013]
[1729450171344,0.3836,2702.2,2701.9,0.7992]
[1729450171632,0.75372,2702.2,2702.1,0.37013]
[1729450175739,0.75373,2702.2,2702.1,0.37013]
[1729450178145,0.3836,2702.2,2702.1,0.37013]
[1729450178442,1.19502,2702.3,2701.9,0.7992]
[1729450178632,1.19502,2702.3,2702.2,0.37012]
[1729450178834,4.3685,2702.5,2701.9,0.7992]
[1729450179036,5.14349,2702.5,2702.3,0.37009]
[1729450179239,5.14349,2702.5,2702.4,0.76799]
[1729450179937,5.14349,2702.5,2702.4,0.3979]
[1729450180547,5.14349,2702.5,2702.4,0.76799]
[1729450180743,1.17569,2702.5,2702.4,0.76799]
[1729450181838,0.77499,2702.5,2702.4,0.76799]
[1729450184342,0.77499,2702.5,2702.4,0.3979]
[1729450184551,0.77499,2702.5,2702.4,0.76799]
[1729450184849,0.77499,2702.5,2702.4,0.3979]
[1729450187348,0.37012,2702.3,2702.2,0.37011]
[1729450190248,0.37012,2702.3,2702.2,1.33741577]
[1729450191249,0.37012,2702.3,2702.2,0.96730577]
[1729450191452,0.37012,2702.3,2702.2,1.33742577]
[1729450191840,0.37012,2702.3,2702.2,1.75412921]
[1729450192040,0.37012,2702.3,2702.2,2.94806929]
[1729450192242,0.37012,2702.3,2702.2,2.94831675]
[1729450192442,0.37012,2702.3,2702.2,3.41131542]
[1729450192948,2.31170004,2702.3,2702.2,0.87969971]
[1729450193953,0.37012,2702.3,2702.2,0.87969971]
[1729450194153,0.37012,2702.3,2702.2,1.24981971]
[1729450194453,0.37012,2702.3,2702.2,1.99063283]
[1729450194647,0.37012,2702.3,2702.2,1.62051283]
[1729450195452,3.57792,2702.3,2702.2,0.87969971]
[1729450196559,3.57792,2702.3,2702.2,0.11575029]
[1729450196745,3.57792,2702.3,2702.2,0.87974391]
[1729450197050,0.37012,2702.3,2702.2,0.87974391]
[1729450200260,0.37013,2702.2,2702.1,0.37012]
[1729450200454,3.19891779,2702.2,2702.1,0.78683978]
[1729450200653,3.19891779,2702.2,2702.1,1.24986369]
[1729450200856,0.77083,2702.2,2702.1,3.89656056]
[1729450202549,0.77083,2702.2,2702.1,3.43353665]
[1729450202745,0.77083,2702.2,2702.1,4.63738072]
[1729450204563,0.77083,2702.2,2702.1,3.89620107]
[1729450205062,0.77083,2702.2,2702.1,4.63703329]
[1729450206359,0.77083,2702.2,2702.1,3.43317893]
[1729450206559,0.77083,2702.2,2702.1,4.63702112]
[1729450206860,0.77083,2702.2,2702.1,3.43317893]
[1729450207058,0.77083,2702.2,2702.1,3.01646434]
[1729450207861,0.77083,2702.2,2702.1,2.53326859]
[1729450209361,0.77082,2702.2,2702.1,3.01646434]
[1729450209961,0.4007,2702.2,2702.1,3.01646434]
[1729450210665,0.77082,2702.2,2702.1,3.01646434]
[1729450213956,0.77082,2702.2,2702.1,2.42379697]
[1729450214157,0.77082,2702.2,2702.1,3.61936233]
[1729450214555,0.77082,2702.2,2702.1,4.8231848]
[1729450215951,0.77082,2702.2,2702.1,2.17585612]
[1729450217361,0.77082,2702.2,2702.1,0.37012]
[1729450217568,0.77082,2702.2,2702.1,2.1758634]
[1729450217862,0.4007,2702.2,2702.1,2.1758634]
[1729450218263,0.77082,2702.2,2702.1,2.1758634]
[1729450220966,0.77082,2702.2,2702.1,1.87490617]
[1729450221165,0.77082,2702.2,2702.1,0.97203524]
[1729450221465,0.77082,2702.2,2702.1,2.17586733]
[1729450221660,0.77082,2702.2,2702.1,1.43504758]
[1729450222060,0.77082,2702.2,2702.1,0.94888512]
[1729450222861,0.77082,2702.2,2702.1,3.5966515]
[1729450223770,0.77082,2702.2,2702.1,3.59665871]
[1729450224669,0.77082,2702.2,2702.1,3.59665918]
[1729450224866,0.77082,2702.2,2702.1,3.59665985]
[1729450229172,0.77082,2702.2,2702.1,4.08282306]
[1729450229770,0.77082,2702.2,2702.1,4.82364575]
[1729450230469,0.77082,2702.2,2702.1,3.37188243]
[1729450230867,0.77082,2702.2,2702.1,4.82640437]
[1729450231064,3.19890779,2702.2,2702.1,2.17587216]
[1729450231976,3.19890779,2702.2,2702.1,2.17587713]
[1729450235465,3.19890779,2702.2,2702.1,0.67107978]
[1729450235675,3.19890779,2702.2,2702.1,2.17587913]
[1729450236671,3.19890779,2702.2,2702.1,1.43505483]
[1729450237171,3.19890779,2702.2,2702.1,0.94888895]
[1729450237975,0.77082,2702.2,2702.1,2.1456655]
[1729450238165,0.77082,2702.2,2702.1,2.14564231]
[1729450239078,0.77082,2702.2,2702.1,2.02988855]
[1729450239271,0.77082,2702.2,2702.1,1.56687336]
[1729450239475,0.77082,2702.2,2702.1,2.14564314]
[1729450239784,0.77082,2702.2,2702.1,2.60865897]
[1729450240466,0.77082,2702.2,2702.1,2.60866897]
[1729450241069,0.4007,2702.2,2702.1,2.60866897]
[1729450241274,0.4007,2702.2,2702.1,4.54476576]
[1729450241669,0.77082,2702.2,2702.1,4.54476576]
[1729450241975,1.5553,2702.4,2702.2,0.37012]
[1729450241976,1.9438132,2702.4,2702.2,0.37012]
[1729450242169,2.3138932,2702.5,2702.4,0.37009]
[1729450242373,3.0698932,2702.6,2702.4,3.62015499]
[1729450242672,3.0698932,2702.6,2702.5,1.56683336]
[1729450242873,3.0698932,2702.6,2702.5,3.02222129]
[1729450243078,2.3138932,2702.6,2702.5,3.02222129]
[1729450243466,0.37008,2702.6,2702.5,3.60090952]
[1729450243872,1.9438132,2702.7,2702.5,3.23082952]
[1729450244173,3.57785,2702.8,2702.7,0.37005]
[1729450244373,3.57785,2702.8,2702.7,2.95235961]
[1729450244876,3.57785,2702.8,2702.7,3.41528436]
[1729450245583,0.37005,2702.8,2702.7,1.848481]
[1729450246085,0.37005,2702.8,2702.7,0.87956437]
[1729450246270,0.37005,2702.8,2702.7,0.76383114]
[1729450246480,2.42664089,2702.8,2702.7,0.37005]
[1729450246771,1.94119752,2703.0,2702.8,0.37004]
[1729450246970,1.94119752,2703.0,2702.9,1.36866194]
[1729450247177,1.94119752,2703.0,2702.9,2.3870372]
[1729450247378,5.14899752,2703.1,2702.9,2.0170172]
[1729450247686,5.14899752,2703.1,2703.0,1.13377953]
[1729450247981,5.14899752,2703.1,2703.0,1.66569218]
[1729450248185,5.14899752,2703.1,2703.0,1.54997953]
[1729450249185,5.14899752,2703.1,2703.0,0.90193265]
[1729450249385,3.2078,2703.1,2703.0,0.90193265]
[1729450249587,3.2078,2703.1,2703.0,1.36478257]
[1729450249882,3.2078,2703.1,2703.0,0.90193265]
[1729450251183,2.69457752,2703.2,2703.1,0.37]
[1729450251385,0.75338,2703.2,2703.1,0.37]
[1729450252279,0.37,2703.1,2702.9,0.76691]
[1729450252486,0.37,2703.1,2703.0,0.37001]
[1729450253080,0.3834,2703.2,2702.9,0.3969]
[1729450253281,0.75339,2703.2,2703.0,0.37001]
[1729450253480,0.75339,2703.2,2702.9,0.3969]
[1729450253481,0.3834,2703.2,2702.9,0.3969]
[1729450253679,3.5912,2703.2,2702.7,0.412]
[1729450253883,0.37003,2702.9,2702.8,0.37003]
[1729450254289,0.37003,2702.9,2702.8,0.37004]
[1729450254490,0.37002,2703.0,2702.8,0.37004]
[1729450254792,1.15612,2702.9,2702.8,0.37004]
[1729450255091,1.55872,2702.9,2702.8,0.37004]
[1729450255285,1.1887,2702.9,2702.8,0.37004]
[1729450255680,1.55872,2702.9,2702.8,0.37004]
[1729450256380,1.55872,2702.9,2702.6,0.8128]
[1729450256586,1.1887,2702.9,2702.6,0.8128]
[1729450256783,0.37004,2702.8,2702.7,0.37005]
[1729450256991,0.37006,2702.7,2702.5,0.37008]
[1729450257587,0.37006,2702.7,2702.6,0.37006]
[1729450258291,0.37004,2702.8,2702.6,0.37006]
[1729450259095,0.37005,2702.7,2702.6,0.37006]
[1729450259284,1.1887,2702.9,2702.4,0.7994]
[1729450259485,0.37004,2702.8,2702.7,0.37005]
[1729450262188,1.55874,2702.9,2702.7,0.37005]
[1729450262598,1.55874,2702.9,2702.8,0.37004]
[1729450263106,1.55874,2702.9,2702.7,0.37004]
[1729450263294,1.55874,2702.9,2702.8,0.37004]
[1729450263482,1.55874,2702.9,2702.5,0.96891663]
[1729450263795,1.55874,2702.9,2702.7,0.37004]
[1729450264182,1.55874,2702.9,2702.5,0.96891663]
[1729450264389,1.55874,2702.9,2702.6,0.11572674]
[1729450264589,1.55874,2702.9,2702.7,0.37004]
[1729450265605,3.2078,2703.4,2702.7,3.7]
[1729450265793,0.4229,2703.2,2703.1,0.37]
[1729450266796,0.4229,2703.2,2703.1,0.48570714]
[1729450267398,0.4229,2703.2,2703.1,0.37]
[1729450275006,0.79288,2703.2,2703.1,0.37]
[1729450275602,0.4229,2703.2,2703.1,0.37]
[1729450280196,0.4229,2703.2,2702.8,3.09259663]
[1729450280197,1.17166,2703.4,2702.8,3.09259663]
[1729450280400,1.56236,2703.4,2703.3,0.36997]
[1729450280698,0.3907,2703.4,2703.3,0.36997]
[1729450280897,3.2078,2703.6,2703.0,0.92502]
[1729450281096,3.2078,2703.6,2703.5,0.36994]
[1729450283606,3.2078,2703.6,2703.2,1.1983]
[1729450283797,3.57774,2703.6,2703.2,1.1983]
[1729450284000,3.57774,2703.6,2703.5,0.36994]
[1729450285916,3.2078,2703.6,2703.5,0.36994]
[1729450288605,0.3699,2703.8,2703.6,0.36993]
[1729450288804,0.3699,2703.8,2703.7,0.77071]
[1729450288805,0.7835,2703.8,2703.7,0.77071]
[1729450289020,0.4136,2703.8,2703.7,0.88639344]
[1729450289812,0.4136,2703.8,2703.7,0.77071]
[1729450291312,1.94119752,2703.9,2703.8,0.3699]
[1729450291511,0.7825,2704.0,2703.7,0.4008]
[1729450291716,0.3699,2703.9,2703.8,0.3699]
[1729450292019,0.3699,2703.9,2703.7,0.7707]
[1729450292414,0.3699,2703.9,2703.8,0.3699]
[1729450292913,0.3699,2703.9,2703.7,0.4008]
[1729450293126,0.3699,2703.9,2703.4,3.2078]
[1729450293127,0.36993,2703.6,2703.5,0.36994]
[1729450293311,0.36993,2703.6,2703.4,3.2078]
[1729450293312,0.36991,2703.7,2703.4,0.36995]
[1729450293617,0.75094,2703.5,2703.4,0.36995]
[1729450294212,0.381,2703.5,2703.4,0.36995]
[1729450294407,0.4085,2703.6,2703.2,0.8072]
[1729450294624,0.4085,2703.6,2703.5,0.36994]
[1729450304822,0.4085,2703.6,2703.5,0.78374]
[1729450307330,0.77843,2703.6,2703.5,0.36994]
[1729450307630,0.4085,2703.6,2703.5,0.36994]
[1729450310733,2.34969752,2703.6,2703.5,0.36994]
[1729450312434,2.34969752,2703.6,2703.5,0.83268486]
[1729450312823,2.34969752,2703.6,2703.5,1.13346901]
[1729450313333,0.4085,2703.6,2703.5,3.29731803]
[1729450313630,0.36988,2704.0,2703.5,7.36064278]
[1729450313833,0.4174,2704.0,2703.9,0.36989]
[1729450314138,0.4174,2704.0,2703.9,0.48556764]
[1729450314436,0.78727,2704.0,2703.9,0.48556764]
[1729450315125,0.4174,2704.0,2703.9,0.48556764]
[1729450315326,0.4174,2704.0,2703.9,0.94825434]
[1729450315835,0.4174,2704.0,2703.9,1.2215767]
[1729450316033,0.4174,2704.0,2703.9,1.33724797]
[1729450316634,0.4174,2704.0,2703.9,2.3055351]
[1729450316833,0.4174,2704.0,2703.9,1.33724797]
[1729450319332,0.4174,2704.0,2703.9,2.3055351]
[1729450319542,0.4174,2704.0,2703.9,1.84284588]
[1729450319939,0.4174,2704.0,2703.9,0.87455875]
[1729450320138,0.4174,2704.0,2703.9,1.84284588]
[1729450320733,0.4099,2704.1,2704.0,0.36987]
[1729450320932,0.4099,2704.1,2704.0,0.48553875]
[1729450321132,0.77976,2704.1,2704.0,1.45382588]
[1729450321329,2.83654089,2704.1,2704.0,0.36987]
[1729450322036,2.83654089,2704.1,2704.0,0.48553706]
[1729450322239,2.83654089,2704.1,2704.0,0.36987]
[1729450323642,2.83654089,2704.1,2704.0,0.48553842]
[1729450324236,2.83654089,2704.1,2704.0,0.36987]
[1729450324434,2.42664089,2704.2,2704.1,0.36986]
[1729450324636,2.84434089,2704.3,2704.1,0.57831499]
[1729450324842,2.35626594,2704.3,2704.2,0.94815819]
[1729450325236,2.35626594,2704.3,2704.2,0.36985]
[1729450325431,2.35626594,2704.3,2704.2,0.94812356]
[1729450326434,1.93856594,2704.3,2704.2,0.94812356]
[1729450327537,1.93856594,2704.4,2704.3,0.36983]
[1729450328346,0.4071,2704.5,2704.4,0.36982]
[1729450334945,5.14636594,2704.9,2704.1,5.10072713]
[1729450335143,0.75977,2704.8,2704.7,0.36978]
[1729450335551,0.36978,2704.7,2704.6,0.36979]
[1729450335738,1.93573483,2704.7,2704.4,0.3809]
[1729450335942,2.72713483,2704.6,2704.4,0.36981]
[1729450336151,0.3698,2704.5,2704.4,0.36981]
[1729450336341,0.7575,2704.5,2704.4,0.36981]
[1729450339048,0.7575,2704.5,2704.3,0.36982]
[1729450339251,0.36983,2704.3,2704.2,0.78764]
[1729450339441,0.36983,2704.4,2704.3,0.36983]
[1729450339649,0.75751,2704.5,2704.3,0.36983]
[1729450340657,0.75751,2704.5,2704.4,0.36982]
[1729450343053,0.3877,2704.5,2704.4,0.48547273]
[1729450343556,0.7575,2704.5,2704.4,0.48547273]
[1729450345651,0.7575,2704.5,2704.4,0.11565273]
[1729450345954,0.7575,2704.5,2704.4,0.48547273]
[1729450346254,0.7575,2704.5,2704.4,0.11565273]
[1729450346757,0.7575,2704.5,2704.4,0.11565232]
[1729450347252,3.9653,2704.5,2704.4,0.11565232]
[1729450347562,0.36986,2704.1,2704.0,0.36987]
[1729450347852,0.36986,2704.1,2704.0,0.48553802]
[1729450348251,0.36986,2704.1,2704.0,0.11566802]
[1729450348451,4.52004,2704.5,2704.0,0.48553802]
[1729450348651,0.36986,2704.2,2704.0,0.36987]
[1729450348854,1.2015,2704.1,2704.0,0.36987]
[1729450349058,1.57136,2704.1,2704.0,0.11566981]
[1729450349351,1.2015,2704.1,2704.0,0.48553981]
[1729450349656,1.2015,2704.1,2704.0,0.11566981]
[1729450349854,1.2015,2704.1,2704.0,0.36987]
[1729450351862,0.3862,2704.1,2704.0,0.36987]
[1729450352059,0.8045,2704.4,2704.3,0.36983]
[1729450352255,1.58702,2704.4,2704.3,0.36983]
[1729450352454,1.2172,2704.4,2704.3,0.36983]
[1729450355250,1.58703,2704.4,2704.2,1.33654841]
[1729450356360,1.58703,2704.4,2704.3,0.36983]
[1729450356959,1.2172,2704.4,2704.3,0.11565887]
[1729450357166,1.58702,2704.4,2704.3,0.11565887]
[1729450357559,1.58702,2704.4,2704.3,0.11566117]
[1729450357858,0.801,2704.4,2704.3,0.48549117]
[1729450358159,1.17082,2704.4,2704.3,0.89959117]
[1729450359370,1.17082,2704.4,2704.3,1.36222668]
[1729450359666,3.10655483,2704.4,2704.3,1.36222668]
[1729450360674,2.73673483,2704.4,2704.3,1.54727989]
[1729450361169,0.801,2704.4,2704.3,1.24656551]
[1729450361471,0.801,2704.4,2704.3,1.5472706]
[1729450361765,0.4127,2704.4,2704.3,1.5472706]
[1729450362072,2.32263483,2704.6,2704.3,2.03325609]
[1729450362264,2.69243483,2704.6,2704.5,0.3698]
[1729450362564,2.69243483,2704.6,2704.5,1.1331406]
[1729450362565,0.7567,2704.6,2704.5,1.1331406]
[1729450362873,2.69243483,2704.6,2704.5,1.1331406]
[1729450363166,2.69243483,2704.6,2704.5,0.11565766]
[1729450363167,0.7567,2704.6,2704.5,0.11565766]
[1729450363366,3.18334089,2704.6,2704.5,0.11565766]
[1729450363762,0.7567,2704.6,2704.5,0.11565766]
[1729450363957,0.3869,2704.6,2704.5,0.11566038]
[1729450364164,0.75669,2704.6,2704.5,0.11566038]
[1729450364365,0.75669,2704.6,2704.5,0.11566129]
[1729450364969,0.75669,2704.6,2704.3,0.36983]
[1729450365271,2.30934613,2704.4,2704.3,0.36983]
[1729450365663,0.75492,2704.4,2704.3,1.33653841]
[1729450367262,0.75492,2704.4,2704.3,0.96670841]
[1729450369575,0.75492,2704.4,2704.3,2.16211635]
[1729450372166,0.75492,2704.4,2704.3,2.39343901]
[1729450372379,0.75492,2704.4,2704.3,2.57849714]
[1729450372773,0.75492,2704.4,2704.3,3.78137568]
[1729450373774,0.75492,2704.4,2704.3,4.26867144]
[1729450374075,0.75492,2704.4,2704.3,4.26941814]
[1729450375380,0.75492,2704.4,2704.3,4.63924814]
[1729450375690,0.75492,2704.4,2704.3,4.52358332]
[1729450375876,0.75492,2704.4,2704.3,4.63924331]
[1729450376079,0.75492,2704.4,2704.3,4.26941331]
[1729450379087,0.75492,2704.4,2704.3,4.26971452]
[1729450379285,0.75492,2704.4,2704.3,3.52948619]
[1729450379480,0.75492,2704.4,2704.3,4.26971791]
[1729450379886,0.75492,2704.4,2704.3,3.0668406]
[1729450380079,0.75492,2704.4,2704.3,2.76612128]
[1729450380380,0.75492,2704.4,2704.3,2.65046002]
[1729450380690,0.3851,2704.4,2704.2,0.36984]
[1729450380891,0.36983,2704.3,2704.2,0.36984]
[1729450381387,2.79423766,2704.3,2704.2,0.36984]
[1729450383681,2.42440766,2704.3,2704.2,0.36984]
[1729450383881,3.17933766,2704.4,2704.2,0.36984]
[1729450385484,0.75493,2704.4,2704.3,0.36983]
[1729450385689,0.36983,2704.3,2704.2,0.36984]
[1729450386083,2.79580268,2704.3,2704.2,0.36984]
[1729450387276,2.79580268,2704.3,2704.2,0.41638256]
[1729450387598,0.36983,2704.3,2704.2,0.41638256]
[1729450387782,2.79580268,2704.3,2704.2,0.78623256]
[1729450387983,0.36983,2704.3,2704.2,1.98911562]
[1729450388183,2.79580268,2704.3,2704.2,2.17417241]
[1729450388388,2.42597268,2704.3,2704.2,2.17417241]
[1729450388685,0.75493,2704.4,2704.3,0.36983]
[1729450388887,0.75493,2704.4,2704.3,4.63896684]
[1729450389086,0.75493,2704.4,2704.3,5.03246684]
[1729450391782,0.75493,2704.4,2704.3,3.83661689]
[1729450391987,0.75493,2704.4,2704.3,5.03283013]